[Event "GrandPrix_29.05"]
[Site "Chess.com"]
[Date "2020.05.29"]
[Round "5"]
[White "Arm-Akiba"]
[Black "DenLaz"]
[Result "1/2-1/2"]
[WhiteElo "2890"]
[BlackElo "2801"]
[TimeControl "600+2"]
[EndTime "11:34:02 PDT"]
[Termination "Game drawn by repetition"]

1. d4 {[%clk 0:10:01.9]} 1... d5 {[%clk 0:09:59]} 2. c4 {[%clk 0:10:02.5]} 2...
c6 {[%clk 0:09:59.6]} 3. Nf3 {[%clk 0:10:03.7]} 3... Nf6 {[%clk 0:10:00.6]} 4.
Nc3 {[%clk 0:10:04.8]} 4... dxc4 {[%clk 0:10:00.6]} 5. a4 {[%clk 0:10:05.1]}
5... Bf5 {[%clk 0:10:01.4]} 6. e3 {[%clk 0:10:06.1]} 6... e6 {[%clk 0:10:02]} 7.
Bxc4 {[%clk 0:10:07.1]} 7... Bb4 {[%clk 0:10:03.2]} 8. O-O {[%clk 0:10:08]} 8...
O-O {[%clk 0:10:04.7]} 9. Qe2 {[%clk 0:10:09.2]} 9... Nbd7 {[%clk 0:10:04.9]}
10. e4 {[%clk 0:10:05.4]} 10... Bg6 {[%clk 0:10:05.7]} 11. Bd3 {[%clk
0:09:52.8]} 11... Bh5 {[%clk 0:10:04.8]} 12. e5 {[%clk 0:09:34.8]} 12... Nd5
{[%clk 0:10:04.2]} 13. Nxd5 {[%clk 0:09:35.6]} 13... cxd5 {[%clk 0:10:06.1]} 14.
Qe3 {[%clk 0:09:37]} 14... Be7 {[%clk 0:10:05.8]} 15. Ng5 {[%clk 0:09:33.5]}
15... Bxg5 {[%clk 0:10:04.9]} 16. Qxg5 {[%clk 0:09:34.4]} 16... Qxg5 {[%clk
0:10:02.7]} 17. Bxg5 {[%clk 0:09:34.8]} 17... Nb8 {[%clk 0:10:04.2]} 18. Rfc1
{[%clk 0:08:46.3]} 18... Nc6 {[%clk 0:10:00.8]} 19. Be3 {[%clk 0:08:46.7]} 19...
Rfc8 {[%clk 0:09:55.1]} 20. Rc3 {[%clk 0:08:39.6]} 20... Nb4 {[%clk 0:09:32.3]}
21. Bf1 {[%clk 0:08:27.8]} 21... Rxc3 {[%clk 0:09:03.1]} 22. bxc3 {[%clk
0:08:28]} 22... Nc6 {[%clk 0:09:04.7]} 23. a5 {[%clk 0:08:25.3]} 23... Rc8
{[%clk 0:09:02]} 24. f3 {[%clk 0:07:49.9]} 24... Bg6 {[%clk 0:08:54.1]} 25. Kf2
{[%clk 0:07:41.8]} 25... f6 {[%clk 0:08:42.2]} 26. exf6 {[%clk 0:07:31.1]} 26...
gxf6 {[%clk 0:08:44.1]} 27. g4 {[%clk 0:07:14.4]} 27... a6 {[%clk 0:08:18.6]}
28. Ra3 {[%clk 0:07:00.3]} 28... Kf7 {[%clk 0:08:07.9]} 29. h4 {[%clk
0:06:41.3]} 29... h5 {[%clk 0:08:07.3]} 30. Be2 {[%clk 0:06:40.2]} 30... Ke7
{[%clk 0:06:41.2]} 31. g5 {[%clk 0:05:38.3]} 31... Kf7 {[%clk 0:06:11.1]} 32.
gxf6 {[%clk 0:05:38.1]} 32... Kxf6 {[%clk 0:06:13]} 33. Bg5+ {[%clk 0:05:33.8]}
33... Kf7 {[%clk 0:06:13.2]} 34. Ke3 {[%clk 0:05:25.9]} 34... Bc2 {[%clk
0:06:00.7]} 35. Kd2 {[%clk 0:05:03.9]} 35... Bg6 {[%clk 0:05:54.6]} 36. Bd1
{[%clk 0:04:37.1]} 36... Ke8 {[%clk 0:05:05]} 37. Ba4 {[%clk 0:04:22.8]} 37...
Kf7 {[%clk 0:05:01.5]} 38. Bd1 {[%clk 0:03:43.5]} 38... Ke8 {[%clk 0:05:00]} 39.
Bf4 {[%clk 0:03:31.1]} 39... Kf7 {[%clk 0:04:58.8]} 40. Bd6 {[%clk 0:03:26.4]}
40... Rd8 {[%clk 0:04:50.9]} 41. Bc7 {[%clk 0:03:11.2]} 41... Rd7 {[%clk
0:04:44]} 42. Bb6 {[%clk 0:03:02.1]} 42... Kf6 {[%clk 0:04:31.1]} 43. Ba4 {[%clk
0:02:59.8]} 43... Bf5 {[%clk 0:04:22]} 44. Rb3 {[%clk 0:02:43.2]} 44... e5
{[%clk 0:03:42]} 45. Bxc6 {[%clk 0:02:15.2]} 45... bxc6 {[%clk 0:03:41.7]} 46.
Bc5 {[%clk 0:02:16.9]} 46... e4 {[%clk 0:03:23.9]} 47. fxe4 {[%clk 0:02:06.8]}
47... dxe4 {[%clk 0:03:21.6]} 48. Rb6 {[%clk 0:02:05.1]} 48... Be6 {[%clk
0:03:22.7]} 49. Rxc6 {[%clk 0:02:00.9]} 49... Kf5 {[%clk 0:03:22.9]} 50. Bd6
{[%clk 0:01:33.1]} 50... Bd5 {[%clk 0:03:16.9]} 51. Rxa6 {[%clk 0:01:32.4]}
51... Rg7 {[%clk 0:03:17.1]} 52. Ke3 {[%clk 0:01:18.9]} 52... Rg2 {[%clk
0:03:16.4]} 53. Be5 {[%clk 0:00:48.8]} 53... Re2+ {[%clk 0:02:55.3]} 54. Kxe2
{[%clk 0:00:45.7]} 54... Bc4+ {[%clk 0:02:57.2]} 55. Ke3 {[%clk 0:00:46.3]}
55... Bxa6 {[%clk 0:02:58.6]} 56. Bg3 {[%clk 0:00:37.7]} 56... Bc4 {[%clk
0:02:55.8]} 57. d5 {[%clk 0:00:36.5]} 57... Bxd5 {[%clk 0:02:55]} 58. a6 {[%clk
0:00:33.5]} 58... Kg4 {[%clk 0:02:51.3]} 59. Be1 {[%clk 0:00:33.1]} 59... Kf5
{[%clk 0:02:46.7]} 60. a7 {[%clk 0:00:32.6]} 60... Ba8 {[%clk 0:02:47.2]} 61. c4
{[%clk 0:00:29.7]} 61... Bb7 {[%clk 0:02:42.3]} 62. Kd4 {[%clk 0:00:24.4]} 62...
Ke6 {[%clk 0:02:41.7]} 63. Bd2 {[%clk 0:00:21.8]} 63... Ba8 {[%clk 0:02:40.8]}
64. Bf4 {[%clk 0:00:21]} 64... Bb7 {[%clk 0:02:39.9]} 65. Kc5 {[%clk 0:00:21.7]}
65... Kd7 {[%clk 0:02:40.1]} 66. Be3 {[%clk 0:00:21.3]} 66... Ba8 {[%clk
0:02:37.4]} 67. Kd4 {[%clk 0:00:21.9]} 67... Ke6 {[%clk 0:02:37.8]} 68. Bd2
{[%clk 0:00:23.2]} 68... Bb7 {[%clk 0:02:37.2]} 69. Ke3 {[%clk 0:00:24.5]} 69...
Kf5 {[%clk 0:02:37.3]} 70. Be1 {[%clk 0:00:23.9]} 70... Ba8 {[%clk 0:02:37.6]}
71. Kd4 {[%clk 0:00:23.6]} 71... Ke6 {[%clk 0:02:32.7]} 72. Bd2 {[%clk
0:00:23.8]} 72... Bb7 {[%clk 0:02:28.3]} 73. Kc5 {[%clk 0:00:24.4]} 73... Kd7
{[%clk 0:02:25.9]} 74. Kb6 {[%clk 0:00:25.4]} 74... Bc6 {[%clk 0:02:23]} 75. Bc1
{[%clk 0:00:26.5]} 75... Ba8 {[%clk 0:02:23.3]} 76. Bg5 {[%clk 0:00:27.9]} 76...
Bc6 {[%clk 0:02:20.8]} 77. Kc5 {[%clk 0:00:28.9]} 77... Ba8 {[%clk 0:02:19.4]}
78. Kd4 {[%clk 0:00:29.3]} 78... Ke6 {[%clk 0:02:20.6]} 79. Ke3 {[%clk 0:00:30]}
79... Kf5 {[%clk 0:02:21.6]} 80. Bd8 {[%clk 0:00:31.4]} 80... Bb7 {[%clk
0:02:19.2]} 81. Kd4 {[%clk 0:00:32.3]} 81... Ke6 {[%clk 0:02:20]} 82. Bg5 {[%clk
0:00:30.1]} 82... Ba8 {[%clk 0:02:18.7]} 83. Kc3 {[%clk 0:00:31.5]} 83... Ke5
{[%clk 0:02:06.5]} 84. Be3 {[%clk 0:00:31.2]} 84... Ke6 {[%clk 0:02:06.2]} 85.
Kb4 {[%clk 0:00:31.5]} 85... Kd6 {[%clk 0:02:01.1]} 86. Kb5 {[%clk 0:00:32.2]}
86... Bc6+ {[%clk 0:01:58.8]} 87. Ka6 {[%clk 0:00:31.6]} 87... Ba8 {[%clk
0:01:59.1]} 88. Kb6 {[%clk 0:00:33]} 88... Kd7 {[%clk 0:01:59.7]} 89. Bg5 {[%clk
0:00:32.1]} 89... Bc6 {[%clk 0:01:56.8]} 90. Kc5 {[%clk 0:00:29.2]} 90... Ba8
{[%clk 0:01:56.4]} 91. Kd4 {[%clk 0:00:30.5]} 91... Ke6 {[%clk 0:01:57.8]}
1/2-1/2

[Event "GrandPrix_29.05"]
[Site "Chess.com"]
[Date "2020.05.29"]
[Round "5"]
[White "BogdanDeac"]
[Black "aleksandrovaleksei"]
[Result "1-0"]
[WhiteElo "2334"]
[BlackElo "2307"]
[TimeControl "600+2"]
[EndTime "11:34:03 PDT"]
[Termination "BogdanDeac won on time"]

1. e4 {[%clk 0:10:00.5]} 1... e5 {[%clk 0:09:58.3]} 2. Nf3 {[%clk 0:10:01.5]}
2... Nc6 {[%clk 0:09:59.3]} 3. Bb5 {[%clk 0:10:03]} 3... a6 {[%clk 0:09:59.8]}
4. Ba4 {[%clk 0:10:03.1]} 4... Nf6 {[%clk 0:10:00.9]} 5. O-O {[%clk 0:10:03.7]}
5... Be7 {[%clk 0:10:02]} 6. d3 {[%clk 0:10:04.5]} 6... b5 {[%clk 0:09:57.4]} 7.
Bb3 {[%clk 0:10:04.6]} 7... O-O {[%clk 0:09:57.5]} 8. Nc3 {[%clk 0:10:01.8]}
8... d6 {[%clk 0:09:55.2]} 9. a3 {[%clk 0:09:50.3]} 9... Nb8 {[%clk 0:09:05.6]}
10. a4 {[%clk 0:09:47.9]} 10... b4 {[%clk 0:09:02.7]} 11. Nd5 {[%clk 0:09:48.9]}
11... Nxd5 {[%clk 0:09:01.6]} 12. Bxd5 {[%clk 0:09:50.8]} 12... c6 {[%clk
0:09:02.6]} 13. Bb3 {[%clk 0:09:51.7]} 13... Nd7 {[%clk 0:09:03.4]} 14. d4
{[%clk 0:09:31.1]} 14... Qc7 {[%clk 0:08:59.9]} 15. a5 {[%clk 0:09:22.3]} 15...
exd4 {[%clk 0:08:47.1]} 16. Qxd4 {[%clk 0:09:22.4]} 16... Nc5 {[%clk 0:08:22.1]}
17. Bf4 {[%clk 0:09:15.8]} 17... Nxb3 {[%clk 0:08:01.7]} 18. cxb3 {[%clk
0:09:15.7]} 18... c5 {[%clk 0:07:38.5]} 19. Qd3 {[%clk 0:09:15.9]} 19... Be6
{[%clk 0:07:38.8]} 20. Nd2 {[%clk 0:08:39.5]} 20... Qc6 {[%clk 0:07:21.4]} 21.
Nc4 {[%clk 0:08:39.6]} 21... Rad8 {[%clk 0:05:43.7]} 22. Nb6 {[%clk 0:08:23.4]}
22... Bf6 {[%clk 0:05:42.5]} 23. Nd5 {[%clk 0:08:14.8]} 23... Bxd5 {[%clk
0:05:42.1]} 24. exd5 {[%clk 0:08:15.4]} 24... Qb7 {[%clk 0:05:39.5]} 25. Rab1
{[%clk 0:07:56.5]} 25... Bd4 {[%clk 0:05:36.6]} 26. Qc4 {[%clk 0:07:28.2]} 26...
Rfe8 {[%clk 0:05:36.9]} 27. Rfe1 {[%clk 0:07:23.5]} 27... h6 {[%clk 0:05:34.9]}
28. Rxe8+ {[%clk 0:07:02.5]} 28... Rxe8 {[%clk 0:05:35.4]} 29. Bxd6 {[%clk
0:07:04]} 29... Qc8 {[%clk 0:05:35.6]} 30. Rf1 {[%clk 0:06:58.7]} 30... Re4
{[%clk 0:05:23.5]} 31. Qc2 {[%clk 0:06:31.7]} 31... Qf5 {[%clk 0:05:03.7]} 32.
Bxc5 {[%clk 0:06:31.5]} 32... Qxd5 {[%clk 0:05:03.6]} 33. Bxd4 {[%clk
0:05:55.4]} 33... Rxd4 {[%clk 0:05:01.4]} 34. Qc8+ {[%clk 0:05:56.1]} 34... Kh7
{[%clk 0:04:59.4]} 35. Qxa6 {[%clk 0:05:55.9]} 35... Qxb3 {[%clk 0:04:56.9]} 36.
Qb7 {[%clk 0:05:12.4]} 36... Rd1 {[%clk 0:02:35.8]} 37. Qe4+ {[%clk 0:03:32.2]}
37... g6 {[%clk 0:02:34.5]} 38. Qe2 {[%clk 0:03:31.8]} 38... Rxf1+ {[%clk
0:02:34.7]} 39. Kxf1 {[%clk 0:03:32.2]} 39... Qa2 {[%clk 0:02:32.7]} 40. Qe5
{[%clk 0:03:29.1]} 40... Qc4+ {[%clk 0:02:15.2]} 41. Ke1 {[%clk 0:03:28.4]}
41... h5 {[%clk 0:00:59.6]} 42. h3 {[%clk 0:02:51.6]} 42... Qc6 {[%clk
0:00:48.6]} 43. Kf1 {[%clk 0:01:42.5]} 43... Qc1+ {[%clk 0:00:41.9]} 44. Ke2
{[%clk 0:01:41.9]} 44... Qc6 {[%clk 0:00:40.8]} 45. Qe7 {[%clk 0:00:25.4]} 45...
Qb5+ {[%clk 0:00:21.5]} 46. Ke3 {[%clk 0:00:15.4]} 46... Kg7 {[%clk 0:00:21.4]}
47. Qc7 {[%clk 0:00:14.6]} 47... Qg5+ {[%clk 0:00:12.4]} 48. Ke2 {[%clk
0:00:11.5]} 48... Qxg2 {[%clk 0:00:11.2]} 49. Qc4 {[%clk 0:00:10.6]} 49... Qb7
{[%clk 0:00:05]} 50. a6 {[%clk 0:00:10.1]} 50... Qb6 {[%clk 0:00:06.2]} 51. Kd3
{[%clk 0:00:08.8]} 51... Kg8 {[%clk 0:00:05.6]} 52. Qc8+ {[%clk 0:00:08.6]}
52... Kg7 {[%clk 0:00:06.2]} 53. Qc4 {[%clk 0:00:08.8]} 53... f6 {[%clk
0:00:06.1]} 54. f4 {[%clk 0:00:09.9]} 54... h4 {[%clk 0:00:06.7]} 55. Kc2 {[%clk
0:00:10]} 55... g5 {[%clk 0:00:06.8]} 56. fxg5 {[%clk 0:00:09.9]} 56... fxg5
{[%clk 0:00:08]} 57. Kb3 {[%clk 0:00:11.3]} 57... Kg6 {[%clk 0:00:06.7]} 58.
Qe4+ {[%clk 0:00:11.1]} 58... Kf6 {[%clk 0:00:07.5]} 59. Qb7 {[%clk 0:00:09.2]}
59... Qe3+ {[%clk 0:00:07.7]} 60. Ka4 {[%clk 0:00:09.5]} 60... Qe8+ {[%clk
0:00:06.5]} 61. Qb5 {[%clk 0:00:09.8]} 61... Qe7 {[%clk 0:00:05]} 62. Qb6+
{[%clk 0:00:10.4]} 62... Kf5 {[%clk 0:00:04.5]} 63. a7 {[%clk 0:00:11.4]} 1-0

[Event "GrandPrix_29.05"]
[Site "Chess.com"]
[Date "2020.05.29"]
[Round "5"]
[White "KuzubovYuriy"]
[Black "Nodar_Lortkipanidze"]
[Result "0-1"]
[WhiteElo "2415"]
[BlackElo "2482"]
[TimeControl "600+2"]
[EndTime "11:34:06 PDT"]
[Termination "Nodar_Lortkipanidze won by resignation"]

1. d4 {[%clk 0:10:01.9]} 1... e6 {[%clk 0:09:56.5]} 2. c4 {[%clk 0:09:53.8]}
2... f5 {[%clk 0:09:56.8]} 3. a3 {[%clk 0:09:46.9]} 3... b6 {[%clk 0:09:55.4]}
4. Nc3 {[%clk 0:09:46.1]} 4... Bb7 {[%clk 0:09:56.4]} 5. Nf3 {[%clk 0:09:45.8]}
5... Nf6 {[%clk 0:09:57.2]} 6. g3 {[%clk 0:09:30.5]} 6... Ne4 {[%clk 0:09:56.1]}
7. Bd2 {[%clk 0:09:25.5]} 7... Be7 {[%clk 0:09:31.3]} 8. Bg2 {[%clk 0:09:20.8]}
8... Bf6 {[%clk 0:09:26.5]} 9. Rc1 {[%clk 0:09:12.2]} 9... O-O {[%clk 0:09:25]}
10. d5 {[%clk 0:09:03]} 10... c6 {[%clk 0:08:57.6]} 11. dxe6 {[%clk 0:08:16.2]}
11... dxe6 {[%clk 0:08:56.7]} 12. O-O {[%clk 0:05:39.6]} 12... c5 {[%clk
0:08:55.7]} 13. Qc2 {[%clk 0:05:38.3]} 13... Nxd2 {[%clk 0:08:30.8]} 14. Nxd2
{[%clk 0:05:28.4]} 14... Bxg2 {[%clk 0:08:32.7]} 15. Kxg2 {[%clk 0:05:29.2]}
15... Nc6 {[%clk 0:08:28.5]} 16. Rfd1 {[%clk 0:05:24.1]} 16... Qe7 {[%clk
0:08:14]} 17. Nf3 {[%clk 0:05:18.1]} 17... g5 {[%clk 0:07:58.8]} 18. h3 {[%clk
0:05:09.8]} 18... h5 {[%clk 0:07:56.6]} 19. g4 {[%clk 0:04:45.1]} 19... hxg4
{[%clk 0:06:48.7]} 20. hxg4 {[%clk 0:04:47]} 20... fxg4 {[%clk 0:06:50]} 21. Nh2
{[%clk 0:04:11.2]} 21... Nd4 {[%clk 0:06:20]} 22. Qe4 {[%clk 0:03:54.7]} 22...
Nf5 {[%clk 0:05:39.9]} 23. Nxg4 {[%clk 0:03:49.5]} 23... Nh4+ {[%clk 0:05:39.5]}
24. Kf1 {[%clk 0:03:45.6]} 24... Bg7 {[%clk 0:05:08.5]} 25. e3 {[%clk
0:03:38.9]} 25... Rad8 {[%clk 0:04:41.4]} 26. Rxd8 {[%clk 0:03:34.3]} 26... Rxd8
{[%clk 0:04:42.3]} 27. Ke2 {[%clk 0:03:33.1]} 27... Qf7 {[%clk 0:03:37]} 28. Rd1
{[%clk 0:01:40.8]} 28... Rxd1 {[%clk 0:03:36.4]} 29. Nxd1 {[%clk 0:01:19.5]}
29... Qf5 {[%clk 0:03:36.3]} 30. f3 {[%clk 0:01:18.8]} 30... Qxe4 {[%clk
0:03:03.9]} 31. fxe4 {[%clk 0:01:20.7]} 31... Kf7 {[%clk 0:02:54.8]} 32. b3
{[%clk 0:01:19.7]} 32... Kg6 {[%clk 0:02:52.5]} 33. Kf2 {[%clk 0:00:59.6]} 33...
Kh5 {[%clk 0:02:36.5]} 34. Kg3 {[%clk 0:00:59.7]} 34... Ng6 {[%clk 0:02:37.2]}
35. Ndf2 {[%clk 0:00:58.9]} 35... Be5+ {[%clk 0:02:15.7]} 36. Kh3 {[%clk
0:00:58.4]} 36... Bg7 {[%clk 0:02:00.9]} 37. Nd3 {[%clk 0:00:56.9]} 37... a5
{[%clk 0:01:51.6]} 38. Kg3 {[%clk 0:00:54.6]} 38... Bh8 {[%clk 0:01:42.8]} 39.
e5 {[%clk 0:00:54.8]} 39... Ne7 {[%clk 0:01:11.5]} 40. a4 {[%clk 0:00:51.8]}
40... Nc6 {[%clk 0:01:01]} 41. Kf3 {[%clk 0:00:50.7]} 41... Kg6 {[%clk
0:01:00.6]} 42. Ke4 {[%clk 0:00:48]} 42... Bg7 {[%clk 0:01:01.6]} 43. Ndf2
{[%clk 0:00:43]} 43... Kh5 {[%clk 0:01:00.3]} 44. Nf6+ {[%clk 0:00:40.1]} 44...
Bxf6 {[%clk 0:01:00.9]} 45. exf6 {[%clk 0:00:41.2]} 45... Kg6 {[%clk 0:01:01.1]}
46. Ng4 {[%clk 0:00:41.6]} 46... Kf7 {[%clk 0:00:57.3]} 47. Kf3 {[%clk
0:00:40.6]} 47... Nb8 {[%clk 0:00:44.8]} 48. e4 {[%clk 0:00:38.2]} 48... Nc6
{[%clk 0:00:43.9]} 49. e5 {[%clk 0:00:37.6]} 49... Nd4+ {[%clk 0:00:42.7]} 50.
Ke3 {[%clk 0:00:37.8]} 50... Nxb3 {[%clk 0:00:43.8]} 51. Nf2 {[%clk 0:00:37.7]}
51... Nd4 {[%clk 0:00:42.8]} 52. Ne4 {[%clk 0:00:37.7]} 52... Kg6 {[%clk
0:00:43]} 53. Nf2 {[%clk 0:00:36.9]} 53... Nf5+ {[%clk 0:00:36.7]} 54. Ke4
{[%clk 0:00:35.8]} 54... Nh6 {[%clk 0:00:37.8]} 55. Nh3 {[%clk 0:00:34.9]} 55...
Nf7 {[%clk 0:00:37.4]} 56. Nf2 {[%clk 0:00:35.3]} 56... Kh5 {[%clk 0:00:38.6]}
57. Nd1 {[%clk 0:00:26.8]} 57... Kh4 {[%clk 0:00:36.5]} 58. Ne3 {[%clk
0:00:26.8]} 58... g4 {[%clk 0:00:35.3]} 59. Ng2+ {[%clk 0:00:22.9]} 59... Kg3
{[%clk 0:00:27.7]} 60. Nf4 {[%clk 0:00:21.5]} 60... Ng5+ {[%clk 0:00:20.3]} 61.
Ke3 {[%clk 0:00:22.7]} 61... Kh2 {[%clk 0:00:17.9]} 62. Nh5 {[%clk 0:00:18.2]}
62... g3 {[%clk 0:00:16.3]} 63. Kf4 {[%clk 0:00:19.3]} 63... g2 {[%clk
0:00:16.8]} 64. Kxg5 {[%clk 0:00:20.6]} 64... g1=Q+ {[%clk 0:00:18.3]} 65. Kh6
{[%clk 0:00:22]} 65... Qe3+ {[%clk 0:00:16.8]} 66. Kg6 {[%clk 0:00:20.8]} 66...
Qxe5 {[%clk 0:00:17.9]} 67. f7 {[%clk 0:00:19]} 67... Qf5+ {[%clk 0:00:19.3]}
68. Kg7 {[%clk 0:00:19]} 68... Qg5+ {[%clk 0:00:20.6]} 0-1

[Event "GrandPrix_29.05"]
[Site "Chess.com"]
[Date "2020.05.29"]
[Round "5"]
[White "Tyoma88888"]
[Black "Vesper2018"]
[Result "1/2-1/2"]
[WhiteElo "2195"]
[BlackElo "1886"]
[TimeControl "600+2"]
[EndTime "11:34:08 PDT"]
[Termination "Game drawn by repetition"]

1. e4 {[%clk 0:08:59.8]} 1... c5 {[%clk 0:09:59.5]} 2. Nc3 {[%clk 0:09:00.2]}
2... d6 {[%clk 0:09:59.4]} 3. f4 {[%clk 0:09:00.8]} 3... Nc6 {[%clk 0:09:57.5]}
4. Nf3 {[%clk 0:09:01.8]} 4... g6 {[%clk 0:09:58.6]} 5. Bc4 {[%clk 0:09:02.2]}
5... Bg7 {[%clk 0:09:59.1]} 6. O-O {[%clk 0:09:03.1]} 6... e6 {[%clk 0:09:52.8]}
7. d4 {[%clk 0:08:58.6]} 7... Nxd4 {[%clk 0:09:19.3]} 8. Be3 {[%clk 0:08:57.6]}
8... Nxf3+ {[%clk 0:08:55.4]} 9. Qxf3 {[%clk 0:08:59.5]} 9... Ne7 {[%clk
0:08:15.3]} 10. f5 {[%clk 0:08:53.5]} 10... f6 {[%clk 0:06:36.9]} 11. fxe6
{[%clk 0:08:21.6]} 11... O-O {[%clk 0:06:33.7]} 12. Rad1 {[%clk 0:08:05.9]}
12... a6 {[%clk 0:05:11.5]} 13. Bxc5 {[%clk 0:07:44.3]} 13... Qc7 {[%clk
0:04:37.8]} 14. Bxd6 {[%clk 0:07:39]} 14... Qxc4 {[%clk 0:04:37.4]} 15. Bxe7
{[%clk 0:07:40.4]} 15... Bxe6 {[%clk 0:04:25.4]} 16. Bxf8 {[%clk 0:07:39.8]}
16... Rxf8 {[%clk 0:04:26.1]} 17. Qd3 {[%clk 0:07:03.5]} 17... Qc5+ {[%clk
0:03:51.7]} 18. Qd4 {[%clk 0:06:58.5]} 18... Qg5 {[%clk 0:03:42.8]} 19. Qd6
{[%clk 0:06:44.5]} 19... Bc4 {[%clk 0:03:08.9]} 20. Rf3 {[%clk 0:06:33.1]} 20...
h5 {[%clk 0:02:29.9]} 21. Rg3 {[%clk 0:06:18.5]} 21... Qh6 {[%clk 0:02:30.7]}
22. Nd5 {[%clk 0:05:58.5]} 22... Kh7 {[%clk 0:02:13.8]} 23. Nf4 {[%clk 0:05:29]}
23... Bf7 {[%clk 0:01:59.9]} 24. Ne6 {[%clk 0:04:57.5]} 24... Bxe6 {[%clk
0:01:58.1]} 25. Qxe6 {[%clk 0:04:59.4]} 25... f5 {[%clk 0:01:42.4]} 26. e5
{[%clk 0:04:11.1]} 26... h4 {[%clk 0:01:28.1]} 27. Rf3 {[%clk 0:04:07.4]} 27...
Qg5 {[%clk 0:01:13.9]} 28. Qd7 {[%clk 0:04:01.2]} 28... Kh6 {[%clk 0:00:54.9]}
29. e6 {[%clk 0:03:58.9]} 29... Bf6 {[%clk 0:00:55.9]} 30. Qd2 {[%clk
0:03:38.3]} 30... Qxd2 {[%clk 0:00:42]} 31. Rxd2 {[%clk 0:03:40.2]} 31... Re8
{[%clk 0:00:31.6]} 32. Re2 {[%clk 0:03:39.8]} 32... Bxb2 {[%clk 0:00:27.3]} 33.
Kf1 {[%clk 0:03:35.1]} 33... Bf6 {[%clk 0:00:14.2]} 34. Rd3 {[%clk 0:03:34]}
34... f4 {[%clk 0:00:12.6]} 35. Rd7 {[%clk 0:03:34.7]} 35... b5 {[%clk
0:00:13.1]} 36. Ra7 {[%clk 0:03:24.5]} 36... Kg5 {[%clk 0:00:13.3]} 37. Rxa6
{[%clk 0:03:23]} 37... b4 {[%clk 0:00:12.3]} 38. Ra5+ {[%clk 0:03:21.7]} 38...
Kg4 {[%clk 0:00:12.4]} 39. Rd5 {[%clk 0:03:09.6]} 39... h3 {[%clk 0:00:12.5]}
40. gxh3+ {[%clk 0:02:45.5]} 40... Kxh3 {[%clk 0:00:13.7]} 41. Rd3+ {[%clk
0:02:46.5]} 41... Kg4 {[%clk 0:00:14.6]} 42. h3+ {[%clk 0:02:29.1]} 42... Kh4
{[%clk 0:00:13.3]} 43. Kg2 {[%clk 0:02:26.4]} 43... g5 {[%clk 0:00:10.1]} 44.
Rd7 {[%clk 0:02:21.7]} 44... Be7 {[%clk 0:00:11.4]} 45. Re4 {[%clk 0:01:44.9]}
45... Kh5 {[%clk 0:00:12.7]} 46. Rd5 {[%clk 0:01:43.4]} 46... Kg6 {[%clk
0:00:11.7]} 47. Rc4 {[%clk 0:01:42.1]} 47... Kf6 {[%clk 0:00:09.8]} 48. Rc6
{[%clk 0:01:43.1]} 48... Ra8 {[%clk 0:00:08.1]} 49. Kf3 {[%clk 0:01:13.8]} 49...
Rxa2 {[%clk 0:00:08.8]} 50. Kg4 {[%clk 0:01:12.4]} 50... Ra3 {[%clk 0:00:07]}
51. Rd3 {[%clk 0:00:53.8]} 51... Ra1 {[%clk 0:00:07.9]} 52. Kf3 {[%clk
0:00:50.3]} 52... Re1 {[%clk 0:00:05.8]} 53. Kf2 {[%clk 0:00:41.8]} 53... Re4
{[%clk 0:00:06.2]} 54. Kf3 {[%clk 0:00:20.4]} 54... Re5 {[%clk 0:00:07.6]} 55.
h4 {[%clk 0:00:15]} 55... gxh4 {[%clk 0:00:07.8]} 56. Kxf4 {[%clk 0:00:16.4]}
56... Re1 {[%clk 0:00:06.9]} 57. Kg4 {[%clk 0:00:15.8]} 57... Kg6 {[%clk
0:00:06.3]} 58. Rf3 {[%clk 0:00:13.1]} 58... Rg1+ {[%clk 0:00:06]} 59. Kh3
{[%clk 0:00:14.5]} 59... Rh1+ {[%clk 0:00:06.3]} 60. Kg2 {[%clk 0:00:15.6]}
60... Re1 {[%clk 0:00:07.7]} 61. Kh3 {[%clk 0:00:07.9]} 61... Rh1+ {[%clk
0:00:08.3]} 62. Kg2 {[%clk 0:00:09.4]} 62... Re1 {[%clk 0:00:09.6]} 63. Kf2
{[%clk 0:00:11.3]} 63... Re4 {[%clk 0:00:09.6]} 64. Kf1 {[%clk 0:00:11.1]} 64...
Re5 {[%clk 0:00:09.1]} 65. Kf2 {[%clk 0:00:10.6]} 65... Re4 {[%clk 0:00:10.6]}
66. Rd3 {[%clk 0:00:10.2]} 66... Rf4+ {[%clk 0:00:10.5]} 67. Rf3 {[%clk
0:00:11.3]} 67... Re4 {[%clk 0:00:11.5]} 1/2-1/2